bitfinex-derivatives/quotes_SOLF0:USTF0_20241024
["timestamp","ask_amount","ask_price","bid_price","bid_amount"]
[1729765793623,7.10909822,172.97,172.94,1.4470222]
[1729765793828,4.6,173.0,172.9,7.4941]
[1729765793829,7.10909822,172.95,172.9,7.4941]
[1729765794028,7.10909822,172.95,172.91,6.55038251]
[1729765794227,2.893,172.98,172.92,1.44712929]
[1729765794427,7.10909822,172.96,172.93,1.44712929]
[1729765794624,7.10909822,172.96,172.91,2.894]
[1729765794823,7.10909822,172.96,172.92,1.44721799]
[1729765795030,7.10909822,172.96,172.93,1.44721209]
[1729765795237,2.8936,172.94,172.9,2.8942]
[1729765795535,2.8936,172.94,172.91,6.55199578]
[1729765795735,2.8936,172.94,172.92,1.44721357]
[1729765795937,2.8936,172.94,172.93,1.44721357]
[1729765798037,2.8936,172.94,172.91,2.8941]
[1729765798231,7.10909822,172.96,172.92,6.55192087]
[1729765798432,2.8935,172.95,172.93,6.55078811]
[1729765798633,2.8935,172.95,172.94,1.44714517]
[1729765799626,2.8933,172.96,172.94,1.44714517]
[1729765799831,2.8933,172.96,172.95,1.44714517]
[1729765800433,2.893,172.98,172.95,1.44714517]
[1729765800627,8.3024,173.03,172.94,7.10909822]
[1729765800834,7.10909822,173.0,172.95,2.8933]
[1729765801141,7.10909822,173.0,172.92,4.5]
[1729765801142,2.8931,172.97,172.96,1.44698867]
[1729765801442,7.10909822,172.97,172.91,4.5]
[1729765801639,7.10909822,172.97,172.92,6.54860935]
[1729765801938,7.10909822,172.97,172.93,1.447107]
[1729765802139,7.10909822,172.97,172.89,4.5]
[1729765802140,7.10909822,172.97,172.94,1.447107]
[1729765802333,7.10909822,172.97,172.91,2.894]
[1729765802527,7.10909822,172.96,172.92,6.54859023]
[1729765802726,7.10909822,172.96,172.93,1.4470958]
[1729765802927,7.10909822,172.94,172.89,11.60909822]
[1729765803139,7.10909822,172.94,172.9,6.54938948]
[1729765803338,2.8939,172.92,172.91,6.54938948]
[1729765804034,2.8939,172.92,172.91,6.54943321]
[1729765804337,2.8936,172.95,172.92,2.8938]
[1729765804540,7.10909822,172.98,172.93,6.54874784]
[1729765804740,7.10909822,172.98,172.94,1.44723974]
[1729765804947,4.5,172.99,172.92,10.00299822]
[1729765804948,2.8934,172.95,172.92,10.00299822]
[1729765805239,2.8934,172.95,172.93,6.54866795]
[1729765805429,2.8934,172.95,172.92,10.00299822]
[1729765805631,7.10909822,172.97,172.93,6.54847153]
[1729765805836,2.8936,172.94,172.9,7.10909822]
[1729765806042,7.10909822,172.97,172.91,6.54853095]
[1729765806345,7.10909822,172.97,172.92,6.54853095]
[1729765806534,7.10909822,172.97,172.93,1.44710349]
[1729765806730,7.10909822,172.97,172.9,10.00329822]
[1729765806731,7.10909822,172.97,172.94,1.44710349]
[1729765806937,7.10909822,172.95,172.89,4.5]
[1729765807138,7.10909822,172.95,172.9,6.54984888]
[1729765807340,7.10909822,172.95,172.91,6.54984888]
[1729765807534,7.10909822,172.95,172.92,6.54986838]
[1729765807740,7.10909822,172.95,172.93,1.44718124]
[1729765808044,7.10909822,172.95,172.94,1.44718124]
[1729765808244,2.894,172.92,172.88,14.50359822]
[1729765808442,2.894,172.92,172.89,6.55545579]
[1729765808643,4.5,172.95,172.9,6.55545579]
[1729765808843,4.5,172.95,172.87,10.00379822]
[1729765808844,2.894,172.92,172.91,1.4475324]
[1729765809247,7.10909822,172.93,172.87,7.10909822]
[1729765809441,7.10909822,172.93,172.88,6.5553614]
[1729765809639,4.5,172.95,172.89,1.44760412]
[1729765809835,7.10909822,172.94,172.9,1.44760412]
[1729765810054,7.10909822,172.94,172.87,7.10909822]
[1729765810241,7.10909822,172.94,172.88,6.55436433]
[1729765810447,7.10909822,172.94,172.89,1.44759281]
[1729765810745,7.10909822,172.94,172.9,1.44759281]
[1729765810941,2.8944,172.9,172.87,7.10909822]
[1729765811247,2.8944,172.9,172.88,6.55255076]
[1729765811447,2.8944,172.9,172.89,6.55255076]
[1729765812143,2.8944,172.9,172.89,1.44761403]
[1729765813346,7.10909822,172.92,172.86,1.2754]
[1729765813645,2.8946,172.88,172.87,6.5497548]
[1729765814045,2.8946,172.88,172.87,1.44772424]
[1729765814956,2.8946,172.88,172.85,7.10909822]
[1729765815252,2.8946,172.88,172.86,1.44787381]
[1729765815546,2.8946,172.88,172.85,7.10909822]
[1729765815547,2.8946,172.88,172.87,1.44787381]
[1729765816149,7.10909822,172.92,172.86,4.5]
[1729765816349,2.8948,172.87,172.86,4.5]
[1729765816553,2.8948,172.87,172.86,5.94788563]
[1729765817143,2.8946,172.88,172.86,5.94788563]
[1729765817340,7.10909822,172.88,172.73,2.93122781]
[1729765817547,2.8953,172.84,172.81,7.10909822]
[1729765817753,2.8953,172.84,172.82,6.54612565]
[1729765818053,2.8953,172.84,172.83,1.44807177]
[1729765818546,2.8953,172.84,172.81,7.10909822]
[1729765818747,2.8953,172.84,172.82,1.44810261]
[1729765818952,2.8953,172.84,172.81,7.10909822]
[1729765819149,2.8953,172.84,172.82,1.44810022]
[1729765819347,7.10909822,172.88,172.81,7.10909822]
[1729765819546,2.8954,172.83,172.82,1.44809519]
[1729765819751,2.8954,172.83,172.82,5.94809519]
[1729765820142,2.8954,172.83,172.82,4.5]
[1729765820343,7.10909822,172.88,172.82,4.5]
[1729765820543,2.8952,172.85,172.82,4.5]
[1729765820750,7.10909822,172.9,172.83,7.10909822]
[1729765821957,2.8953,172.84,172.83,7.10909822]
[1729765822344,2.8953,172.84,172.82,4.5]
[1729765822556,2.8954,172.83,172.82,11.60909822]
[1729765825458,7.10909822,172.86,172.8,13.64700629]
[1729765825759,2.8958,172.81,172.8,7.10909822]
[1729765825960,2.8958,172.81,172.8,13.0572148]
[1729765826161,2.8958,172.81,172.8,11.60909822]
[1729765827656,2.8958,172.81,172.8,7.10909822]
[1729765827857,2.8958,172.81,172.8,11.60909822]
[1729765829181,2.8958,172.81,172.8,7.10909822]
[1729765829354,2.8961,172.79,172.78,1.2495]
[1729765829556,2.8961,172.79,172.78,14.30681779]
[1729765830261,2.8961,172.79,172.78,12.85859822]
[1729765830654,2.8964,172.77,172.75,107.71513381]
[1729765830863,2.8964,172.77,172.76,13.0574223]
[1729765832163,2.8964,172.77,172.76,11.60909822]
[1729765832361,2.8964,172.77,172.76,13.05741725]
[1729765834460,2.8964,172.77,172.76,11.60909822]
[1729765834965,2.8964,172.77,172.76,13.05741725]
[1729765835265,2.8963,172.78,172.76,11.60909822]
[1729765835659,2.8963,172.78,172.76,13.05741725]
[1729765835860,2.8963,172.78,172.76,11.60909822]
[1729765836056,2.8963,172.78,172.76,13.05741725]
[1729765836257,2.8963,172.78,172.76,11.60909822]
[1729765837063,2.4734,172.86,172.75,1.44831903]
[1729765837064,2.8966,172.77,172.75,1.44831903]
[1729765837368,2.8966,172.77,172.76,4.5]
[1729765838261,7.10909822,172.82,172.76,11.60909822]
[1729765838472,2.8963,172.78,172.76,11.60909822]
[1729765839372,2.4734,172.86,172.76,11.60909822]
[1729765839563,7.10909822,172.88,172.81,7.10909822]
[1729765839758,7.10909822,172.88,172.81,11.60909822]
[1729765839957,2.8954,172.84,172.81,11.60909822]
[1729765840259,7.10909822,172.88,172.81,11.60909822]
[1729765841371,2.8955,172.83,172.81,11.60909822]
[1729765841571,2.8955,172.83,172.81,4.5]
[1729765843067,7.10909822,172.87,172.81,4.5]
[1729765843068,2.8956,172.82,172.81,4.5]
[1729765844175,2.8956,172.82,172.8,11.60909822]
[1729765845669,2.8956,172.82,172.8,4.5]
[1729765845865,7.10909822,172.87,172.78,1.1658]
[1729765846070,7.10909822,172.85,172.79,11.60909822]
[1729765846674,1.2272,172.86,172.79,11.60909822]
[1729765846675,2.8957,172.82,172.79,11.60909822]
[1729765846880,2.8957,172.82,172.8,7.10909822]
[1729765847269,2.8958,172.81,172.8,7.10909822]
[1729765849072,2.8958,172.81,172.79,4.5]
[1729765850866,2.8959,172.8,172.79,4.5]
[1729765852671,8.33629822,172.86,172.79,4.5]
[1729765852879,1.2272,172.86,172.81,7.10909822]
[1729765853278,11.60909822,172.88,172.83,7.10909822]
[1729765853470,7.10909822,172.88,172.83,7.10909822]
[1729765855284,2.8953,172.84,172.83,7.10909822]
[1729765856183,2.8955,172.83,172.81,7.10909822]
[1729765857374,11.5566,172.91,172.81,7.10909822]
[1729765857672,11.5566,172.91,172.85,7.10909822]
[1729765857673,8.37739822,172.91,172.85,7.10909822]
[1729765858079,2.8949,172.87,172.85,7.10909822]
[1729765858581,176.31782114,172.97,172.86,7.10909822]
[1729765858780,176.31782114,172.97,172.8,2.72706355]
[1729765858781,7.10909822,172.96,172.89,7.10909822]
[1729765859086,171.91782114,172.97,172.89,11.50909822]
[1729765859379,7.10909822,172.96,172.89,11.50909822]
[1729765859574,2.8941,172.91,172.89,11.50909822]
[1729765860986,2.894,172.92,172.89,11.50909822]
[1729765861675,8.0518,172.99,172.89,11.50909822]
[1729765861676,3.6518,172.99,172.91,7.10909822]
[1729765861878,2.8931,172.97,172.93,7.10909822]
[1729765862077,2.8931,172.97,172.94,7.10909822]
[1729765862387,10.76089822,172.99,172.93,11.50909822]
[1729765863182,2.8935,172.95,172.93,11.50909822]
[1729765863581,3.6518,172.99,172.93,11.50909822]
[1729765863790,3.6518,172.99,172.94,7.10909822]
[1729765864289,2.8934,172.96,172.94,7.10909822]
[1729765864788,2.8934,172.95,172.94,7.10909822]
[1729765866678,3.6518,172.99,172.94,7.10909822]
[1729765866880,2.4324,172.99,172.95,7.10909822]
[1729765869281,2.8932,172.96,172.95,7.10909822]
[1729765870089,2.8935,172.95,172.91,2.894]
[1729765870292,2.8935,172.95,172.94,7.10909822]
[1729765871585,2.4324,172.99,172.88,1.44726734]
[1729765871586,2.8942,172.91,172.89,4.4]
[1729765871788,7.10909822,172.96,172.88,4.4]
[1729765872092,1.1803,172.96,172.91,7.10909822]
[1729765872393,2.894,172.92,172.91,7.10909822]
[1729765879398,2.8938,172.93,172.91,7.10909822]
[1729765879594,2.8938,172.93,172.92,7.10909822]
[1729765880404,2.8935,172.95,172.92,10.00289822]
[1729765880697,2.8935,172.95,172.94,7.10909822]
[1729765881293,6.9951,173.07,172.94,7.10909822]
[1729765881597,3.6403,173.07,172.98,7.10909822]
[1729765881898,7.10909822,173.06,172.98,11.50909822]
[1729765882299,2.8926,173.01,172.98,14.40199822]
[1729765882801,2.893,172.98,172.95,2.8934]
[1729765883104,7.10909822,173.01,172.95,4.4]
[1729765883401,2.8932,172.96,172.95,4.4]
[1729765884394,2.8932,172.96,172.94,7.10909822]
[1729765887402,2.8927,173.0,172.95,7.10909822]
[1729765887599,12.74989822,173.06,172.99,7.10909822]
[1729765887902,2.8925,173.01,172.99,7.10909822]
[1729765889100,8.34989822,173.06,172.99,7.10909822]
[1729765889301,7.10909822,173.04,172.97,11.50909822]
[1729765889706,2.8928,172.99,172.97,11.50909822]
[1729765890300,7.10909822,173.03,172.97,11.50909822]
[1729765890505,7.10909822,173.03,172.97,7.10909822]
[1729765890909,2.8929,172.98,172.97,7.10909822]
[1729765891118,7.10909822,173.03,172.97,7.10909822]
[1729765891601,7.10909822,173.03,172.95,4.4]
[1729765891602,2.8928,172.99,172.96,2.8932]
[1729765891795,1.2408,173.06,172.98,7.10909822]
[1729765892000,7.10909822,173.1,172.99,4.4]
[1729765892305,2.8924,173.02,173.0,7.10909822]
[1729765893205,7.27488449,173.12,173.0,7.10909822]
[1729765893394,2.8921,173.03,173.0,7.10909822]
[1729765893608,7.10909822,173.07,173.0,7.10909822]
[1729765894103,2.8924,173.02,173.0,7.10909822]
[1729765894304,7.10909822,173.06,173.0,7.10909822]
[1729765894807,2.8922,173.03,173.0,7.10909822]
[1729765895306,2.8919,173.05,173.02,7.10909822]
[1729765895501,2.8919,173.05,173.04,7.10909822]
[1729765895706,2.8919,173.05,172.99,4.4]
[1729765895707,2.8919,173.05,173.02,7.10909822]
[1729765896205,2.8921,173.03,173.02,7.10909822]
[1729765897403,7.10909822,173.08,173.02,7.10909822]
[1729765897812,2.8919,173.04,173.02,7.10909822]
[1729765898212,7.10909822,173.08,173.02,7.10909822]
[1729765898406,2.8919,173.04,173.02,7.10909822]
[1729765899002,2.8922,173.03,173.01,7.10909822]
[1729765899806,7.10909822,173.07,173.01,7.10909822]
[1729765900012,2.8919,173.05,173.02,7.10909822]
[1729765900307,7.10909822,173.08,173.02,7.10909822]
[1729765900906,2.8916,173.06,173.04,7.10909822]
[1729765901204,2.4669,173.13,173.05,7.10909822]
[1729765901509,2.96023487,173.18,173.04,4.38]
[1729765901510,2.8907,173.11,173.1,7.10909822]
[1729765901809,7.10909822,173.11,173.04,7.10909822]
[1729765902199,4.38,173.13,173.02,1.2026]
[1729765902407,4.38,173.13,173.07,7.10909822]
[1729765902603,2.8912,173.08,173.07,7.10909822]
[1729765902808,7.10909822,173.12,173.06,7.10909822]
[1729765903915,7.10909822,173.12,173.02,5.5826]
[1729765903916,7.10909822,173.11,173.04,7.10909822]
[1729765904110,8.29629822,173.11,173.04,7.10909822]
[1729765904307,2.8917,173.06,173.04,7.10909822]
[1729765904708,8.29629822,173.11,173.04,7.10909822]
[1729765904907,2.8917,173.05,173.04,7.10909822]
[1729765905102,1.2392,173.12,173.06,2.8916]
[1729765905306,1.2392,173.12,173.07,7.10909822]
[1729765905502,2.891,173.1,173.07,7.10909822]
[1729765905811,2.891,173.1,173.09,7.10909822]
[1729765906416,1.2392,173.12,173.07,7.10909822]
[1729765907108,2.8911,173.09,173.07,7.10909822]
[1729765907316,1.2392,173.12,173.07,7.10909822]
[1729765907509,2.8914,173.08,173.05,7.10909822]
[1729765907710,7.10909822,173.11,173.05,7.10909822]
[1729765907907,7.10909822,173.1,173.04,7.10909822]
[1729765908414,2.8912,173.09,173.04,7.10909822]
[1729765908725,8.37659822,173.11,173.01,4.38]
[1729765909023,8.37659822,173.11,173.04,7.10909822]
[1729765909422,2.8917,173.06,173.04,7.10909822]
[1729765909622,7.10909822,173.1,173.04,7.10909822]
[1729765909820,7.10909822,173.1,173.03,7.10909822]
[1729765910016,8.27379822,173.1,173.03,7.10909822]
[1729765910220,2.8918,173.05,173.03,7.10909822]
[1729765910817,8.27379822,173.1,173.04,7.10909822]
[1729765911615,8.27379822,173.1,173.02,10.00129822]
[1729765912423,2.8917,173.05,173.02,7.10909822]
[1729765913114,2.8916,173.06,173.04,7.10909822]
[1729765913717,7.10909822,173.1,173.04,7.10909822]
[1729765914226,1.2675,173.11,173.06,7.10909822]
[1729765914723,2.8914,173.08,173.06,7.10909822]
[1729765915519,2.8905,173.13,173.08,2.8911]
[1729765915722,2.8905,173.13,173.1,7.10909822]
[1729765915925,4.38,173.16,173.1,7.10909822]
[1729765916514,11.48909822,173.17,173.1,7.10909822]
[1729765916920,2.8902,173.15,173.12,7.10909822]
[1729765917228,2.4438,173.18,173.14,7.10909822]
[1729765917926,2.8901,173.15,173.14,7.10909822]
[1729765918231,2.8901,173.15,173.1,4.42]
[1729765918427,2.8901,173.15,173.12,7.10909822]
[1729765918921,9.55289822,173.18,173.12,7.10909822]
[1729765919721,2.8904,173.13,173.12,7.10909822]
[1729765921330,13.97289822,173.18,173.12,7.10909822]
[1729765922124,6.8638,173.18,173.14,7.10909822]
[1729765922527,1.1674,173.23,173.14,7.10909822]
[1729765922726,7.10909822,173.21,173.14,7.10909822]
[1729765923327,11.52909822,173.21,173.15,7.10909822]
[1729765923933,2.89,173.16,173.14,7.10909822]
[1729765925326,5.7765,173.27,173.16,2.8898]
[1729765925327,2.8895,173.19,173.16,2.8898]
[1729765925633,7.10909822,173.22,173.16,7.10909822]
[1729765926730,2.8895,173.19,173.16,9.99899822]
[1729765928129,2.8895,173.19,173.17,7.10909822]
[1729765928528,7.10909822,173.23,173.17,7.10909822]
[1729765929337,2.8895,173.19,173.17,7.10621033]
[1729765930333,4.42,173.24,173.18,7.10621033]
[1729765930530,11.52621033,173.24,173.18,7.10621033]
[1729765930830,2.8894,173.19,173.18,7.10621033]
[1729765931230,7.10621033,173.2,173.08,1.2128]
[1729765931433,2.8902,173.15,173.14,7.10621033]
[1729765932243,2.89,173.16,173.14,7.10621033]
[1729765932427,2.89,173.16,173.15,7.10621033]
[1729765932737,2.8895,173.19,173.15,7.10621033]
[1729765932933,2.8895,173.19,173.18,7.10621033]
[1729765935539,2.8892,173.21,173.18,7.10621033]
[1729765935739,4.42,173.27,173.2,7.10621033]
[1729765936038,4.42,173.27,173.17,4.42]
[1729765936039,4.42,173.29,173.24,7.10621033]
[1729765936237,2.8884,173.25,173.24,7.10621033]
[1729765937539,2.8887,173.24,173.23,7.10621033]
[1729765938531,14.4242,173.47,173.23,7.10621033]
[1729765938732,2.8881,173.27,173.26,7.10621033]
[1729765940446,2.8877,173.3,173.26,7.10621033]
[1729765940747,2.8877,173.3,173.29,7.10621033]
[1729765941134,2.3697,173.37,173.29,7.10621033]
[1729765941332,7.10621033,173.36,173.29,7.10621033]
[1729765941645,7.10621033,173.36,173.31,7.10621033]
[1729765941840,2.8872,173.32,173.31,7.10621033]
[1729765942344,2.8872,173.32,173.27,2.8881]
[1729765942345,2.888,173.28,173.27,7.10621033]
[1729765943245,2.8885,173.25,173.23,4.42]
[1729765943443,11.52621033,173.28,173.21,2.5173]
[1729765943737,11.52621033,173.28,173.21,8.36111033]
[1729765943941,2.8889,173.22,173.21,8.36111033]
[1729765944336,11.52621033,173.28,173.21,8.36111033]
[1729765944532,2.8889,173.22,173.21,1.2549]
[1729765944738,2.8889,173.22,173.21,8.36111033]
[1729765945142,2.8889,173.22,173.21,7.10621033]
[1729765945339,7.10621033,173.26,173.19,7.10621033]
[1729765945539,7.10621033,173.23,173.14,1.2482]
[1729765945734,7.10621033,173.22,173.14,1.2482]
[1729765945944,7.10621033,173.22,173.14,8.35441033]
[1729765945945,7.10621033,173.2,173.14,8.35441033]
[1729765946143,4.42,173.22,173.16,7.10621033]
[1729765946338,4.42,173.22,173.14,12.35175805]
[1729765946534,2.8897,173.18,173.14,15.24185805]
[1729765946744,4.42,173.22,173.14,12.35175805]
[1729765947036,4.48,173.22,173.14,12.35175805]
[1729765947238,2.8897,173.18,173.14,12.35175805]
[1729765947638,4.48,173.22,173.14,12.35175805]
[1729765947842,2.8896,173.19,173.15,2.8901]
[1729765948043,4.48,173.22,173.15,2.8901]
[1729765948238,4.48,173.22,173.14,12.35175805]
[1729765949049,2.8898,173.17,173.14,12.35175805]
[1729765950245,4.48,173.23,173.15,2.8901]
[1729765950844,4.48,173.23,173.14,12.35175805]
[1729765951642,2.89,173.16,173.14,12.35175805]
[1729765953039,2.8897,173.18,173.14,12.35175805]
[1729765953646,2.8897,173.18,173.14,15.24195805]
[1729765954152,2.8898,173.17,173.14,15.24195805]
[1729765955349,4.48,173.23,173.16,2.8899]
[1729765955548,4.48,173.23,173.14,12.35175805]
[1729765956051,4.48,173.23,173.15,2.89]
[1729765956247,14.80905805,173.27,173.15,2.89]
[1729765956453,4.48,173.26,173.15,2.89]
[1729765956649,2.8895,173.19,173.15,2.89]
[1729765957158,2.8888,173.23,173.15,2.89]
[1729765957450,4.48,173.26,173.15,2.89]
[1729765957754,2.8896,173.19,173.15,2.89]
[1729765958054,4.48,173.26,173.15,2.89]
[1729765958951,4.48,173.26,173.14,12.35175805]
[1729765959142,4.48,173.26,173.17,2.8897]
[1729765959549,2.8893,173.2,173.17,2.8897]
[1729765961058,2.8893,173.2,173.16,13.99345805]
[1729765961450,4.48,173.25,173.16,13.99345805]
[1729765961451,2.8894,173.19,173.16,13.99345805]
[1729765961852,4.48,173.25,173.16,13.99345805]
[1729765962053,2.8894,173.2,173.16,13.99345805]
[1729765966957,2.8894,173.2,173.17,2.8897]
[1729765968261,2.8894,173.2,173.18,7.10484833]
[1729765968963,7.10484833,173.24,173.14,1.2482]
[1729765969282,4.48,173.25,173.06,4.48]
[1729765969283,7.10484833,173.15,173.06,4.48]
[1729765969474,7.10484833,173.15,173.05,4.48]
[1729765969761,2.8908,173.11,173.08,7.10484833]
[1729765970363,2.8908,173.11,173.07,2.8913]
[1729765971163,4.48,173.17,173.06,5.92563677]
[1729765971364,4.48,173.17,173.06,4.48]
[1729765971365,15.58222424,173.17,173.06,4.48]
[1729765971663,4.48,173.17,173.06,4.48]
[1729765972063,4.48,173.17,173.06,5.92559184]
[1729765972266,2.8907,173.12,173.07,2.8913]
[1729765972462,2.8907,173.12,173.06,5.92559184]
[1729765972658,5.7373,173.17,173.07,11.10222424]
[1729765972857,5.7373,173.17,173.07,15.58222424]
[1729765973053,5.7373,173.17,173.12,2.8904]
[1729765973054,4.48,173.17,173.12,2.8904]
[1729765973261,11.10222424,173.21,173.12,2.8904]
[1729765973563,2.89,173.16,173.12,2.8906]
[1729765973758,4.48,173.2,173.09,12.54781608]
[1729765973759,5.7702,173.2,173.09,12.54781608]
[1729765974063,5.7702,173.2,173.09,11.10222424]
[1729765974255,2.89,173.16,173.11,2.8907]
[1729765974461,4.48,173.19,173.09,11.10222424]
[1729765974661,4.48,173.19,173.09,12.54757473]
[1729765974862,4.48,173.19,173.09,11.10222424]
[1729765975066,2.8899,173.16,173.12,2.8904]
[1729765975263,4.48,173.19,173.09,12.54757473]
[1729765975464,4.48,173.19,173.1,1.44535049]
[1729765975671,2.8899,173.17,173.12,2.8905]
[1729765976169,4.48,173.19,173.12,2.8905]
[1729765977463,2.89,173.16,173.12,2.8905]
[1729765978968,4.48,173.19,173.12,2.8905]
[1729765979663,2.89,173.16,173.12,2.8905]
[1729765980066,4.48,173.19,173.12,2.8905]
[1729765980372,2.8901,173.15,173.12,2.8905]
[1729765982364,4.48,173.19,173.11,1.44533828]
[1729765982571,2.8898,173.17,173.13,2.8903]
[1729765983172,2.8899,173.16,173.13,2.8903]
[1729765983872,4.48,173.19,173.15,2.8901]
[1729765983873,2.8896,173.18,173.15,2.8901]
[1729765984076,4.48,173.19,173.15,2.8901]
[1729765984368,7.3695,173.19,173.15,2.8901]
[1729765984568,2.8895,173.19,173.15,2.8901]
[1729765984768,1.2573,173.23,173.17,2.8896]
[1729765984967,1.2573,173.23,173.17,11.10222424]
[1729765984968,2.889,173.22,173.17,11.10222424]
[1729765985762,4.38,173.25,173.17,11.10222424]
[1729765985962,2.8888,173.23,173.2,2.8892]
[1729765986167,5.6237,173.26,173.19,11.10222424]
[1729765986572,2.8886,173.24,173.21,2.8891]
[1729765987164,2.8886,173.24,173.2,2.8892]
[1729765987680,2.8888,173.23,173.19,2.8894]
[1729765987972,2.8888,173.23,173.17,11.10222424]
[1729765988180,2.8888,173.23,173.18,1.44489379]
[1729765988473,2.8888,173.23,173.17,16.17130029]
[1729765988776,2.8888,173.23,173.18,1.44489526]
[1729765988975,2.8888,173.23,173.17,11.10222424]
[1729765989190,2.8886,173.24,173.18,1.44489526]
[1729765989380,2.8886,173.24,173.17,11.10222424]
[1729765989576,2.8886,173.24,173.18,1.44489488]
[1729765989877,2.8886,173.24,173.19,2.8894]
[1729765990573,2.8886,173.24,173.18,5.07055987]
[1729765990574,2.8886,173.24,173.2,2.8892]
[1729765991075,5.6424,173.27,173.13,1.2269]
[1729765991076,4.38,173.23,173.13,1.2269]
[1729765991279,4.38,173.23,173.14,6.51870939]
[1729765991474,2.5524,173.22,173.15,1.44493111]
[1729765991674,2.8897,173.18,173.14,7.96636983]
[1729765991872,2.8897,173.18,173.15,1.44517547]
[1729765992177,2.8897,173.18,173.14,2.8902]
[1729765992374,13.65462424,173.22,173.11,2.8906]
[1729765992676,13.65462424,173.22,173.12,6.52286024]
[1729765992883,13.65462424,173.22,173.13,6.52286024]
[1729765993183,2.8893,173.2,173.14,1.44523836]
[1729765993374,4.38,173.19,173.13,5.07854223]
[1729765993682,4.38,173.19,173.14,1.44525039]
[1729765993980,4.38,173.19,173.11,5.07839192]
[1729765994182,4.38,173.19,173.12,6.52363942]
[1729765994483,4.38,173.19,173.13,6.52363942]
[1729765994673,4.38,173.19,173.14,1.4452475]
[1729765994874,4.38,173.19,173.1,4.38]
[1729765995079,4.38,173.19,173.11,6.52447393]
[1729765995278,4.38,173.19,173.12,6.52447393]
[1729765995479,4.38,173.19,173.13,6.52447393]
[1729765995780,4.38,173.19,173.14,1.44525964]
[1729765995980,4.38,173.19,173.11,5.07920818]
[1729765996173,4.38,173.19,173.12,6.52445803]
[1729765996374,2.8898,173.17,173.13,9.41475803]
[1729765996569,2.8898,173.17,173.14,1.44524985]
[1729765996772,2.8898,173.17,173.13,2.8903]
[1729765996976,2.8898,173.17,173.14,1.44524886]
[1729765997184,2.8898,173.17,173.13,2.8903]
[1729765997383,2.8898,173.17,173.14,1.44524886]
[1729765997576,2.8898,173.17,173.13,2.8903]
[1729765997776,2.8898,173.17,173.14,1.44524886]
[1729765997980,2.8898,173.17,173.13,2.8903]
[1729765998175,2.5524,173.22,173.14,1.44524838]
[1729765998372,2.5524,173.22,173.16,2.8898]
[1729765998373,2.8892,173.2,173.16,2.8898]
[1729766000377,2.8892,173.2,173.17,1.44508422]
[1729766000684,2.8892,173.2,173.16,2.8898]
[1729766000885,2.8892,173.2,173.17,1.44506201]
[1729766001079,1.2885,173.22,173.13,11.10222424]
[1729766001285,11.10222424,173.26,173.16,11.10222424]
[1729766001286,12.30572424,173.26,173.16,11.10222424]
[1729766001485,4.38,173.25,173.17,1.44501803]
[1729766001686,2.889,173.22,173.18,4.33451803]
[1729766001988,2.889,173.22,173.18,2.8895]
[1729766003083,2.8892,173.21,173.17,2.8897]
[1729766003285,2.8892,173.21,173.18,1.44499023]
[1729766003488,5.5835,173.26,173.15,15.48222424]
[1729766003787,2.8888,173.23,173.16,6.52190023]
[1729766004084,2.8888,173.23,173.17,6.52190023]
[1729766004384,5.5835,173.26,173.18,6.52190023]
[1729766004685,2.8886,173.24,173.19,1.44486823]
[1729766004981,2.8884,173.25,173.22,2.8888]
[1729766005190,1.2035,173.26,173.19,4.38]
[1729766005380,1.2035,173.26,173.2,1.44484439]
[1729766005682,2.8889,173.23,173.19,7.2694]
[1729766005880,2.8889,173.23,173.2,1.4448843]
[1729766006072,2.8889,173.23,173.19,7.2694]
[1729766006274,2.8889,173.23,173.2,1.4448843]
[1729766006476,2.8889,173.23,173.19,7.2694]
[1729766006673,2.8889,173.23,173.2,1.4448867]
[1729766006878,2.8889,173.23,173.19,7.2694]
[1729766007187,2.8889,173.23,173.2,1.4448867]
[1729766007486,2.8889,173.23,173.19,7.2694]
[1729766007680,2.8889,173.23,173.2,1.4448867]
[1729766007880,2.8889,173.23,173.19,7.2694]
[1729766008080,2.8889,173.23,173.2,1.44485842]